{"text_format":"3","workbook":"xlsx","n_sheets":1,"sheets":["Resultatregnskap"],"not_rendered":{"defined_names":2},"read":"whole","date_system":"1900"}

{"sheet":"Resultatregnskap","index":0,"n_rows":60,"n_cols":10,"rows_kept":60,"merged":[[9,1,9,9],[16,1,16,9],[24,1,24,9],[38,1,38,9],[43,1,43,9],[56,1,56,9]]}
[null,"Inntekt og tap Kontoutdrag"]
[]
[{"$nulls":3},"TIDLIGERE PERIODE ","BUDSJETT ","INNEVÆRENDE PERIODE ",null,"INNEVÆRENDE PERIODE SOM % AV SALG ","% ENDRING FRA TIDLIGERE PERIODE ","% ENDRING FRA BUDSJETT "]
[null,"Salgsinntekt"]
[null,"Produkt/tjeneste 1",null,40,50,45,null,{"$f":"IFERROR(Salgsinntekt[[#This Row],[Inneværende Periode]]/SUBTOTAL(109,Salgsinntekt[Inneværende Periode]),0)","v":{"v":1,"d":"100.0%"}},{"$f":"IFERROR(Salgsinntekt[[#This Row],[Inneværende Periode]]/Salgsinntekt[[#This Row],[Tidligere Periode ]]-1,0)","v":{"v":0.125,"d":"12.5%"}},{"$f":"IFERROR(Salgsinntekt[[#This Row],[Inneværende Periode]]/Salgsinntekt[[#This Row],[Budsjett  ]]-1,0)","v":{"v":-0.09999999999999998,"d":"-10.0%"}}]
[null,"Produkt/tjeneste 2",{"$nulls":5},{"$f":"IFERROR(Salgsinntekt[[#This Row],[Inneværende Periode]]/SUBTOTAL(109,Salgsinntekt[Inneværende Periode]),0)","v":0},{"$f":"IFERROR(Salgsinntekt[[#This Row],[Inneværende Periode]]/Salgsinntekt[[#This Row],[Tidligere Periode ]]-1,0)","v":0},{"$f":"IFERROR(Salgsinntekt[[#This Row],[Inneværende Periode]]/Salgsinntekt[[#This Row],[Budsjett  ]]-1,0)","v":0}]
[null,"Produkt/tjeneste 3",{"$nulls":5},{"$f":"IFERROR(Salgsinntekt[[#This Row],[Inneværende Periode]]/SUBTOTAL(109,Salgsinntekt[Inneværende Periode]),0)","v":0},{"$f":"IFERROR(Salgsinntekt[[#This Row],[Inneværende Periode]]/Salgsinntekt[[#This Row],[Tidligere Periode ]]-1,0)","v":0},{"$f":"IFERROR(Salgsinntekt[[#This Row],[Inneværende Periode]]/Salgsinntekt[[#This Row],[Budsjett  ]]-1,0)","v":0}]
[null,"Produkt/tjeneste 4",{"$nulls":5},{"$f":"IFERROR(Salgsinntekt[[#This Row],[Inneværende Periode]]/SUBTOTAL(109,Salgsinntekt[Inneværende Periode]),0)","v":0},{"$f":"IFERROR(Salgsinntekt[[#This Row],[Inneværende Periode]]/Salgsinntekt[[#This Row],[Tidligere Periode ]]-1,0)","v":0},{"$f":"IFERROR(Salgsinntekt[[#This Row],[Inneværende Periode]]/Salgsinntekt[[#This Row],[Budsjett  ]]-1,0)","v":0}]
[null,"Totalt",null,{"$f":"SUBTOTAL(109,Salgsinntekt[[Tidligere Periode ]])","v":40},{"$f":"SUBTOTAL(109,Salgsinntekt[[Budsjett  ]])","v":50},{"$f":"SUBTOTAL(109,Salgsinntekt[Inneværende Periode])","v":45},null,{"$f":"IFERROR(Salgsinntekt[[#Totals],[Inneværende Periode]]/Salgsinntekt[[#Totals],[Inneværende Periode]],0)","v":{"v":1,"d":"100.0%"}},{"$f":"IFERROR(Salgsinntekt[[#Totals],[Inneværende Periode]]/Salgsinntekt[[#Totals],[Tidligere Periode ]]-1,0)","v":{"v":0.125,"d":"12.5%"}},{"$f":"IFERROR(Salgsinntekt[[#Totals],[Inneværende Periode]]/Salgsinntekt[[#Totals],[Budsjett  ]]-1,0)","v":{"v":-0.09999999999999998,"d":"-10.0%"}}]
[]
[null,"Salgskostnader"]
[null,"Produkt/tjeneste 1",null,null,2,3,null,{"$f":"IFERROR(KostnadVedSalg[[#This Row],[Inneværende Periode]]/SUBTOTAL(109,Salgsinntekt[Inneværende Periode]),0)","v":{"v":0.06666666666666667,"d":"6.7%"}},{"$f":"IFERROR(KostnadVedSalg[[#This Row],[Inneværende Periode]]/KostnadVedSalg[[#This Row],[Tidligere Periode ]]-1,0)","v":0},{"$f":"IFERROR(KostnadVedSalg[[#This Row],[Inneværende Periode]]/KostnadVedSalg[[#This Row],[Budsjett  ]]-1,0)","v":{"v":0.5,"d":"50.0%"}}]
[null,"Produkt/tjeneste 2",null,null,5,3,null,{"$f":"IFERROR(KostnadVedSalg[[#This Row],[Inneværende Periode]]/SUBTOTAL(109,Salgsinntekt[Inneværende Periode]),0)","v":{"v":0.06666666666666667,"d":"6.7%"}},{"$f":"IFERROR(KostnadVedSalg[[#This Row],[Inneværende Periode]]/KostnadVedSalg[[#This Row],[Tidligere Periode ]]-1,0)","v":0},{"$f":"IFERROR(KostnadVedSalg[[#This Row],[Inneværende Periode]]/KostnadVedSalg[[#This Row],[Budsjett  ]]-1,0)","v":{"v":-0.4,"d":"-40.0%"}}]
[null,"Produkt/tjeneste 3",{"$nulls":3},1,null,{"$f":"IFERROR(KostnadVedSalg[[#This Row],[Inneværende Periode]]/SUBTOTAL(109,Salgsinntekt[Inneværende Periode]),0)","v":{"v":0.022222222222222223,"d":"2.2%"}},{"$f":"IFERROR(KostnadVedSalg[[#This Row],[Inneværende Periode]]/KostnadVedSalg[[#This Row],[Tidligere Periode ]]-1,0)","v":0},{"$f":"IFERROR(KostnadVedSalg[[#This Row],[Inneværende Periode]]/KostnadVedSalg[[#This Row],[Budsjett  ]]-1,0)","v":0}]
[null,"Produkt/tjeneste 4",{"$nulls":5},{"$f":"IFERROR(KostnadVedSalg[[#This Row],[Inneværende Periode]]/SUBTOTAL(109,Salgsinntekt[Inneværende Periode]),0)","v":0},{"$f":"IFERROR(KostnadVedSalg[[#This Row],[Inneværende Periode]]/KostnadVedSalg[[#This Row],[Tidligere Periode ]]-1,0)","v":0},{"$f":"IFERROR(KostnadVedSalg[[#This Row],[Inneværende Periode]]/KostnadVedSalg[[#This Row],[Budsjett  ]]-1,0)","v":0}]
[null,"Totalt",null,{"$f":"SUBTOTAL(109,KostnadVedSalg[[Tidligere Periode ]])","v":0},{"$f":"SUBTOTAL(109,KostnadVedSalg[[Budsjett  ]])","v":7},{"$f":"SUBTOTAL(109,KostnadVedSalg[Inneværende Periode])","v":7},null,{"$f":"IFERROR(KostnadVedSalg[[#Totals],[Inneværende Periode]]/SUBTOTAL(109,Salgsinntekt[Inneværende Periode]),0)","v":{"v":0.15555555555555556,"d":"15.6%"}},{"$f":"IFERROR(KostnadVedSalg[[#Totals],[Inneværende Periode]]/KostnadVedSalg[[#Totals],[Tidligere Periode ]]-1,0)","v":0},{"$f":"IFERROR(KostnadVedSalg[[#Totals],[Inneværende Periode]]/KostnadVedSalg[[#Totals],[Budsjett  ]]-1,0)","v":0}]
[]
[null,"Bruttofortjeneste",null,{"$f":"SUM(Salgsinntekt[[Tidligere Periode ]])-SUM(KostnadVedSalg[[Tidligere Periode ]])","v":40},{"$f":"SUM(Salgsinntekt[[Budsjett  ]])-SUM(KostnadVedSalg[[Budsjett  ]])","v":43},{"$f":"SUM(Salgsinntekt[Inneværende Periode])-SUM(KostnadVedSalg[Inneværende Periode])","v":38},null,{"$f":"IFERROR(F18/SUBTOTAL(109,Salgsinntekt[Inneværende Periode]),0)","v":{"v":0.8444444444444444,"d":"84.4%"}},{"$f":"IFERROR(F18/D18-1,0)","v":{"v":-0.050000000000000044,"d":"-5.0%"}},{"$f":"IFERROR(F18/E18-1,0)","v":{"v":-0.11627906976744184,"d":"-11.6%"}}]
[]
[null,"Driftsutgifter: Salg og markedsføring"]
[null,"Annonsering",null,null,22,19,null,{"$f":"IFERROR(SalgOgMarkedsføring[[#This Row],[Inneværende Periode]]/SUBTOTAL(109,Salgsinntekt[Inneværende Periode]),0)","v":{"v":0.4222222222222222,"d":"42.2%"}},{"$f":"IFERROR(SalgOgMarkedsføring[[#This Row],[Inneværende Periode]]/SalgOgMarkedsføring[[#This Row],[Tidligere Periode ]]-1,0)","v":0},{"$f":"IFERROR(SalgOgMarkedsføring[[#This Row],[Inneværende Periode]]/SalgOgMarkedsføring[[#This Row],[Budsjett  ]]-1,0)","v":{"v":-0.13636363636363635,"d":"-13.6%"}}]
[null,"Direkte markedsføring",{"$nulls":5},{"$f":"IFERROR(SalgOgMarkedsføring[[#This Row],[Inneværende Periode]]/SUBTOTAL(109,Salgsinntekt[Inneværende Periode]),0)","v":0},{"$f":"IFERROR(SalgOgMarkedsføring[[#This Row],[Inneværende Periode]]/SalgOgMarkedsføring[[#This Row],[Tidligere Periode ]]-1,0)","v":0},{"$f":"IFERROR(SalgOgMarkedsføring[[#This Row],[Inneværende Periode]]/SalgOgMarkedsføring[[#This Row],[Budsjett  ]]-1,0)","v":0}]
[null,"Andre utgifter (angi)",{"$nulls":5},{"$f":"IFERROR(SalgOgMarkedsføring[[#This Row],[Inneværende Periode]]/SUBTOTAL(109,Salgsinntekt[Inneværende Periode]),0)","v":0},{"$f":"IFERROR(SalgOgMarkedsføring[[#This Row],[Inneværende Periode]]/SalgOgMarkedsføring[[#This Row],[Tidligere Periode ]]-1,0)","v":0},{"$f":"IFERROR(SalgOgMarkedsføring[[#This Row],[Inneværende Periode]]/SalgOgMarkedsføring[[#This Row],[Budsjett  ]]-1,0)","v":0}]
[null,"Totalt",null,{"$f":"SUBTOTAL(109,SalgOgMarkedsføring[[Tidligere Periode ]])","v":0},{"$f":"SUBTOTAL(109,SalgOgMarkedsføring[[Budsjett  ]])","v":22},{"$f":"SUBTOTAL(109,SalgOgMarkedsføring[Inneværende Periode])","v":19},null,{"$f":"IFERROR(SalgOgMarkedsføring[[#Totals],[Inneværende Periode]]/SUBTOTAL(109,Salgsinntekt[Inneværende Periode]),0)","v":{"v":0.4222222222222222,"d":"42.2%"}},{"$f":"IFERROR(SalgOgMarkedsføring[[#Totals],[Inneværende Periode]]/SalgOgMarkedsføring[[#Totals],[Tidligere Periode ]]-1,0)","v":0},{"$f":"IFERROR(SalgOgMarkedsføring[[#Totals],[Inneværende Periode]]/SalgOgMarkedsføring[[#Totals],[Budsjett  ]]-1,0)","v":{"v":-0.13636363636363635,"d":"-13.6%"}}]
[]
[null,"Driftsutgifter: Generelle og administrative"]
[null,"Lønninger",null,null,56,51,null,{"$f":"IFERROR(GenereltOgAdministrativt[[#This Row],[Inneværende Periode]]/SUBTOTAL(109,Salgsinntekt[Inneværende Periode]),0)","v":{"v":1.1333333333333333,"d":"113.3%"}},{"$f":"IFERROR(GenereltOgAdministrativt[[#This Row],[Inneværende Periode]]/GenereltOgAdministrativt[[#This Row],[Tidligere Periode ]]-1,0)","v":0},{"$f":"IFERROR(GenereltOgAdministrativt[[#This Row],[Inneværende Periode]]/GenereltOgAdministrativt[[#This Row],[Budsjett  ]]-1,0)","v":{"v":-0.0892857142857143,"d":"-8.9%"}}]
[null,"Eksterne tjenester",{"$nulls":5},{"$f":"IFERROR(GenereltOgAdministrativt[[#This Row],[Inneværende Periode]]/SUBTOTAL(109,Salgsinntekt[Inneværende Periode]),0)","v":0},{"$f":"IFERROR(GenereltOgAdministrativt[[#This Row],[Inneværende Periode]]/GenereltOgAdministrativt[[#This Row],[Tidligere Periode ]]-1,0)","v":0},{"$f":"IFERROR(GenereltOgAdministrativt[[#This Row],[Inneværende Periode]]/GenereltOgAdministrativt[[#This Row],[Budsjett  ]]-1,0)","v":0}]
[null,"Materiell",{"$nulls":5},{"$f":"IFERROR(GenereltOgAdministrativt[[#This Row],[Inneværende Periode]]/SUBTOTAL(109,Salgsinntekt[Inneværende Periode]),0)","v":0},{"$f":"IFERROR(GenereltOgAdministrativt[[#This Row],[Inneværende Periode]]/GenereltOgAdministrativt[[#This Row],[Tidligere Periode ]]-1,0)","v":0},{"$f":"IFERROR(GenereltOgAdministrativt[[#This Row],[Inneværende Periode]]/GenereltOgAdministrativt[[#This Row],[Budsjett  ]]-1,0)","v":0}]
[null,"Måltider og underholdning",{"$nulls":5},{"$f":"IFERROR(GenereltOgAdministrativt[[#This Row],[Inneværende Periode]]/SUBTOTAL(109,Salgsinntekt[Inneværende Periode]),0)","v":0},{"$f":"IFERROR(GenereltOgAdministrativt[[#This Row],[Inneværende Periode]]/GenereltOgAdministrativt[[#This Row],[Tidligere Periode ]]-1,0)","v":0},{"$f":"IFERROR(GenereltOgAdministrativt[[#This Row],[Inneværende Periode]]/GenereltOgAdministrativt[[#This Row],[Budsjett  ]]-1,0)","v":0}]
[null,"Leie",{"$nulls":5},{"$f":"IFERROR(GenereltOgAdministrativt[[#This Row],[Inneværende Periode]]/SUBTOTAL(109,Salgsinntekt[Inneværende Periode]),0)","v":0},{"$f":"IFERROR(GenereltOgAdministrativt[[#This Row],[Inneværende Periode]]/GenereltOgAdministrativt[[#This Row],[Tidligere Periode ]]-1,0)","v":0},{"$f":"IFERROR(GenereltOgAdministrativt[[#This Row],[Inneværende Periode]]/GenereltOgAdministrativt[[#This Row],[Budsjett  ]]-1,0)","v":0}]
[null,"Telefon",{"$nulls":5},{"$f":"IFERROR(GenereltOgAdministrativt[[#This Row],[Inneværende Periode]]/SUBTOTAL(109,Salgsinntekt[Inneværende Periode]),0)","v":0},{"$f":"IFERROR(GenereltOgAdministrativt[[#This Row],[Inneværende Periode]]/GenereltOgAdministrativt[[#This Row],[Tidligere Periode ]]-1,0)","v":0},{"$f":"IFERROR(GenereltOgAdministrativt[[#This Row],[Inneværende Periode]]/GenereltOgAdministrativt[[#This Row],[Budsjett  ]]-1,0)","v":0}]
[null,"Tjenester",{"$nulls":5},{"$f":"IFERROR(GenereltOgAdministrativt[[#This Row],[Inneværende Periode]]/SUBTOTAL(109,Salgsinntekt[Inneværende Periode]),0)","v":0},{"$f":"IFERROR(GenereltOgAdministrativt[[#This Row],[Inneværende Periode]]/GenereltOgAdministrativt[[#This Row],[Tidligere Periode ]]-1,0)","v":0},{"$f":"IFERROR(GenereltOgAdministrativt[[#This Row],[Inneværende Periode]]/GenereltOgAdministrativt[[#This Row],[Budsjett  ]]-1,0)","v":0}]
[null,"Avskrivning",{"$nulls":5},{"$f":"IFERROR(GenereltOgAdministrativt[[#This Row],[Inneværende Periode]]/SUBTOTAL(109,Salgsinntekt[Inneværende Periode]),0)","v":0},{"$f":"IFERROR(GenereltOgAdministrativt[[#This Row],[Inneværende Periode]]/GenereltOgAdministrativt[[#This Row],[Tidligere Periode ]]-1,0)","v":0},{"$f":"IFERROR(GenereltOgAdministrativt[[#This Row],[Inneværende Periode]]/GenereltOgAdministrativt[[#This Row],[Budsjett  ]]-1,0)","v":0}]
[null,"Forsikring",{"$nulls":5},{"$f":"IFERROR(GenereltOgAdministrativt[[#This Row],[Inneværende Periode]]/SUBTOTAL(109,Salgsinntekt[Inneværende Periode]),0)","v":0},{"$f":"IFERROR(GenereltOgAdministrativt[[#This Row],[Inneværende Periode]]/GenereltOgAdministrativt[[#This Row],[Tidligere Periode ]]-1,0)","v":0},{"$f":"IFERROR(GenereltOgAdministrativt[[#This Row],[Inneværende Periode]]/GenereltOgAdministrativt[[#This Row],[Budsjett  ]]-1,0)","v":0}]
[null,"Reparasjon og vedlikehold",{"$nulls":5},{"$f":"IFERROR(GenereltOgAdministrativt[[#This Row],[Inneværende Periode]]/SUBTOTAL(109,Salgsinntekt[Inneværende Periode]),0)","v":0},{"$f":"IFERROR(GenereltOgAdministrativt[[#This Row],[Inneværende Periode]]/GenereltOgAdministrativt[[#This Row],[Tidligere Periode ]]-1,0)","v":0},{"$f":"IFERROR(GenereltOgAdministrativt[[#This Row],[Inneværende Periode]]/GenereltOgAdministrativt[[#This Row],[Budsjett  ]]-1,0)","v":0}]
[null,"Andre utgifter (angi)",{"$nulls":5},{"$f":"IFERROR(GenereltOgAdministrativt[[#This Row],[Inneværende Periode]]/SUBTOTAL(109,Salgsinntekt[Inneværende Periode]),0)","v":0},{"$f":"IFERROR(GenereltOgAdministrativt[[#This Row],[Inneværende Periode]]/GenereltOgAdministrativt[[#This Row],[Tidligere Periode ]]-1,0)","v":0},{"$f":"IFERROR(GenereltOgAdministrativt[[#This Row],[Inneværende Periode]]/GenereltOgAdministrativt[[#This Row],[Budsjett  ]]-1,0)","v":0}]
[null,"Totalt",null,{"$f":"SUBTOTAL(109,GenereltOgAdministrativt[[Tidligere Periode ]])","v":0},{"$f":"SUBTOTAL(109,GenereltOgAdministrativt[[Budsjett  ]])","v":56},{"$f":"SUBTOTAL(109,GenereltOgAdministrativt[Inneværende Periode])","v":51},null,{"$f":"IFERROR(GenereltOgAdministrativt[[#Totals],[Inneværende Periode]]/SUBTOTAL(109,Salgsinntekt[Inneværende Periode]),0)","v":{"v":1.1333333333333333,"d":"113.3%"}},{"$f":"IFERROR(GenereltOgAdministrativt[[#Totals],[Inneværende Periode]]/GenereltOgAdministrativt[[#Totals],[Tidligere Periode ]]-1,0)","v":0},{"$f":"IFERROR(GenereltOgAdministrativt[[#Totals],[Inneværende Periode]]/GenereltOgAdministrativt[[#Totals],[Budsjett  ]]-1,0)","v":{"v":-0.0892857142857143,"d":"-8.9%"}}]
[]
[null,"Driftsutgifter: Annet"]
[null,"Annen driftsutgift 1",null,null,10,null,null,{"$f":"IFERROR(AnnenDriftsutgiftskategori[[#This Row],[Inneværende Periode]]/SUBTOTAL(109,Salgsinntekt[Inneværende Periode]),0)","v":0},{"$f":"IFERROR(AnnenDriftsutgiftskategori[[#This Row],[Inneværende Periode]]/AnnenDriftsutgiftskategori[[#This Row],[Tidligere Periode ]]-1,0)","v":0},{"$f":"IFERROR(AnnenDriftsutgiftskategori[[#This Row],[Inneværende Periode]]/AnnenDriftsutgiftskategori[[#This Row],[Budsjett  ]]-1,0)","v":{"v":-1,"d":"-100.0%"}}]
[null,"Annen driftsutgift 2",{"$nulls":5},{"$f":"IFERROR(AnnenDriftsutgiftskategori[[#This Row],[Inneværende Periode]]/SUBTOTAL(109,Salgsinntekt[Inneværende Periode]),0)","v":0},{"$f":"IFERROR(AnnenDriftsutgiftskategori[[#This Row],[Inneværende Periode]]/AnnenDriftsutgiftskategori[[#This Row],[Tidligere Periode ]]-1,0)","v":0},{"$f":"IFERROR(AnnenDriftsutgiftskategori[[#This Row],[Inneværende Periode]]/AnnenDriftsutgiftskategori[[#This Row],[Budsjett  ]]-1,0)","v":0}]
[null,"Totalt",null,{"$f":"SUBTOTAL(109,AnnenDriftsutgiftskategori[[Tidligere Periode ]])","v":0},{"$f":"SUBTOTAL(109,AnnenDriftsutgiftskategori[[Budsjett  ]])","v":10},{"$f":"SUBTOTAL(109,AnnenDriftsutgiftskategori[Inneværende Periode])","v":0},null,{"$f":"IFERROR(AnnenDriftsutgiftskategori[[#Totals],[Inneværende Periode]]/SUBTOTAL(109,Salgsinntekt[Inneværende Periode]),0)","v":0},{"$f":"IFERROR(AnnenDriftsutgiftskategori[[#Totals],[Inneværende Periode]]/AnnenDriftsutgiftskategori[[#Totals],[Tidligere Periode ]]-1,0)","v":0},{"$f":"IFERROR(AnnenDriftsutgiftskategori[[#Totals],[Inneværende Periode]]/AnnenDriftsutgiftskategori[[#Totals],[Budsjett  ]]-1,0)","v":{"v":-1,"d":"-100.0%"}}]
[]
[null,"Totale driftsutgifter",null,{"$f":"SUM(SalgOgMarkedsføring[[Tidligere Periode ]],GenereltOgAdministrativt[[Tidligere Periode ]],AnnenDriftsutgiftskategori[[Tidligere Periode ]])","v":0},{"$f":"SUM(SalgOgMarkedsføring[[Budsjett  ]],GenereltOgAdministrativt[[Budsjett  ]],AnnenDriftsutgiftskategori[[Budsjett  ]])","v":88},{"$f":"SUM(SalgOgMarkedsføring[Inneværende Periode],GenereltOgAdministrativt[Inneværende Periode],AnnenDriftsutgiftskategori[Inneværende Periode])","v":70},null,{"$f":"IFERROR(F45/SUBTOTAL(109,Salgsinntekt[Inneværende Periode]),0)","v":{"v":1.5555555555555556,"d":"155.6%"}},{"$f":"IFERROR(F45/D45-1,0)","v":0},{"$f":"IFERROR(F45/E45-1,0)","v":{"v":-0.20454545454545459,"d":"-20.5%"}}]
[]
[null,"Driftsinntekt",null,{"$f":"D18-D45","v":40},{"$f":"E18-E45","v":-45},{"$f":"F18-F45","v":-32},null,{"$f":"IFERROR(F47/SUBTOTAL(109,Salgsinntekt[Inneværende Periode]),0)","v":{"v":-0.7111111111111111,"d":"-71.1%"}},{"$f":"IFERROR(IF(D47=F47,0,IF(F47>D47,ABS((F47/D47)-1),IF(AND(F47<D47,D47<0),-((F47/D47)-1),(F47/D47)-1))),0)","v":{"v":-1.8,"d":"-180.0%"}},{"$f":"IFERROR(IF(E47=F47,0,IF(F47>E47,ABS((F47/E47)-1),IF(AND(F47<E47,E47<0),-((F47/E47)-1),(F47/E47)-1))),0)","v":{"v":0.28888888888888886,"d":"28.9%"}}]
[]
[null,"Annen inntekt",{"$nulls":5},{"$f":"IFERROR(F49/SUBTOTAL(109,Salgsinntekt[Inneværende Periode]),0)","v":0},{"$f":"IFERROR(F49/D49-1,0)","v":0},{"$f":"IFERROR(F49/E49-1,0)","v":0}]
[]
[null,"Skatter"]
[null,"Inntektsskatt",null,null,32,30,null,{"$f":"IFERROR(Avgifter[[#This Row],[Inneværende Periode]]/SUBTOTAL(109,Salgsinntekt[Inneværende Periode]),0)","v":{"v":0.6666666666666666,"d":"66.7%"}},{"$f":"IFERROR(Avgifter[[#This Row],[Inneværende Periode]]/Avgifter[[#This Row],[Tidligere Periode ]]-1,0)","v":0},{"$f":"IFERROR(Avgifter[[#This Row],[Inneværende Periode]]/Avgifter[[#This Row],[Budsjett  ]]-1,0)","v":{"v":-0.0625,"d":"-6.3%"}}]
[null,"Skatt på lønninger",{"$nulls":5},{"$f":"IFERROR(Avgifter[[#This Row],[Inneværende Periode]]/SUBTOTAL(109,Salgsinntekt[Inneværende Periode]),0)","v":0},{"$f":"IFERROR(Avgifter[[#This Row],[Inneværende Periode]]/Avgifter[[#This Row],[Tidligere Periode ]]-1,0)","v":0},{"$f":"IFERROR(Avgifter[[#This Row],[Inneværende Periode]]/Avgifter[[#This Row],[Budsjett  ]]-1,0)","v":0}]
[null,"Eiendomsskatt",{"$nulls":5},{"$f":"IFERROR(Avgifter[[#This Row],[Inneværende Periode]]/SUBTOTAL(109,Salgsinntekt[Inneværende Periode]),0)","v":0},{"$f":"IFERROR(Avgifter[[#This Row],[Inneværende Periode]]/Avgifter[[#This Row],[Tidligere Periode ]]-1,0)","v":0},{"$f":"IFERROR(Avgifter[[#This Row],[Inneværende Periode]]/Avgifter[[#This Row],[Budsjett  ]]-1,0)","v":0}]
[null,"Andre skatter (angi)",{"$nulls":5},{"$f":"IFERROR(Avgifter[[#This Row],[Inneværende Periode]]/SUBTOTAL(109,Salgsinntekt[Inneværende Periode]),0)","v":0},{"$f":"IFERROR(Avgifter[[#This Row],[Inneværende Periode]]/Avgifter[[#This Row],[Tidligere Periode ]]-1,0)","v":0},{"$f":"IFERROR(Avgifter[[#This Row],[Inneværende Periode]]/Avgifter[[#This Row],[Budsjett  ]]-1,0)","v":0}]
[null,"Totalt",null,{"$f":"SUBTOTAL(109,Avgifter[[Tidligere Periode ]])","v":0},{"$f":"SUBTOTAL(109,Avgifter[[Budsjett  ]])","v":32},{"$f":"SUBTOTAL(109,Avgifter[Inneværende Periode])","v":30},null,{"$f":"IFERROR(Avgifter[[#Totals],[Inneværende Periode]]/SUBTOTAL(109,Salgsinntekt[Inneværende Periode]),0)","v":{"v":0.6666666666666666,"d":"66.7%"}},{"$f":"IFERROR(Avgifter[[#Totals],[Inneværende Periode]]/Avgifter[[#Totals],[Tidligere Periode ]]-1,0)","v":0},{"$f":"IFERROR(Avgifter[[#Totals],[Inneværende Periode]]/Avgifter[[#Totals],[Budsjett  ]]-1,0)","v":{"v":-0.0625,"d":"-6.3%"}}]
[]
[null,"Nettofortjeneste",null,{"$f":"D47+D49-Avgifter[[#Totals],[Tidligere Periode ]]","v":40},{"$f":"E47+E49-Avgifter[[#Totals],[Tidligere Periode ]]","v":-45},{"$f":"F47+F49-Avgifter[[#Totals],[Tidligere Periode ]]","v":-32},null,{"$f":"IFERROR(F58/SUBTOTAL(109,Salgsinntekt[Inneværende Periode]),0)","v":{"v":-0.7111111111111111,"d":"-71.1%"}},{"$f":"IFERROR(IF(D58=F58,0,IF(F58>D58,ABS((F58/D58)-1),IF(AND(F58<D58,D58<0),-((F58/D58)-1),(F58/D58)-1))),0)","v":{"v":-1.8,"d":"-180.0%"}},{"$f":"IFERROR(IF(E58=F58,0,IF(F58>E58,ABS((F58/E58)-1),IF(AND(F58<E58,E58<0),-((F58/E58)-1),(F58/E58)-1))),0)","v":{"v":0.28888888888888886,"d":"28.9%"}}]
[null,"Bruttomargin",null,{"$f":"D18/SUM(Salgsinntekt[[Tidligere Periode ]])","v":{"v":1,"d":"100.0%"}},{"$f":"E18/SUM(Salgsinntekt[[Budsjett  ]])","v":{"v":0.86,"d":"86.0%"}},{"$f":"F18/SUM(Salgsinntekt[Inneværende Periode])","v":{"v":0.8444444444444444,"d":"84.4%"}}]
[null,"Retur på salg",null,{"$f":"D58/SUM(Salgsinntekt[[Tidligere Periode ]])","v":{"v":1,"d":"100.0%"}},{"$f":"E58/SUM(Salgsinntekt[[Budsjett  ]])","v":{"v":-0.9,"d":"-90.0%"}},{"$f":"F58/SUM(Salgsinntekt[Inneværende Periode])","v":{"v":-0.7111111111111111,"d":"-71.1%"}}]